fUST/lending_fUST_20240430
["ID","MTS","AMOUNT","RATE_DAILY","PERIOD"]
[324929851,1714429844483,-166.666666,0.00029962,2]
[324929852,1714429844493,-154.78330338,0.0003,4]
[324929853,1714429844502,-154.78330338,0.0003,4]
[324929854,1714429844512,-154.78330338,0.0003,4]
[324929855,1714429844522,-179.0,0.0003,2]
[324929856,1714429844531,-301.54767848,0.00030053,4]
[324929857,1714429844542,-1000.0,0.000301,7]
[324929858,1714429844551,-603.09535696,0.00030558,7]
[324929859,1714429844559,-1000.0,0.000306,7]
[324929860,1714429844568,-166.666666,0.00030603,2]
[324929861,1714429844577,-964.0261892,0.00030634,5]
[324929862,1714429844587,-286.72543224,0.00031,2]
[324929863,1714429844597,-10000.0,0.00031,2]
[324929864,1714429844606,-1000.0,0.000311,7]
[324929865,1714429844616,-1206.19071393,0.00031332,30]
[324929866,1714429844625,-1000.0,0.000316,7]
[324929867,1714429844636,-151.0,0.00031625,2]
[324929868,1714429844646,-151.0,0.00031625,2]
[324929869,1714429844656,-151.0,0.00031625,2]
[324929870,1714429844666,-207.203829,0.00031625,2]
[324929871,1714429844675,-207.203829,0.00031625,2]
[324929872,1714429844684,-151.0,0.00031625,2]
[324929873,1714429844694,-151.0,0.00031625,2]
[324929874,1714429844704,-288.33413,0.00031625,2]
[324929875,1714429844713,-288.33413,0.00031625,2]
[324929876,1714429844723,-151.0,0.00031732,2]
[324929877,1714429844732,-252.39380363,0.00031732,2]
[324929878,1714429844742,-8071.60441695,0.00031832,7]
[324929879,1714429844751,-254.632697,0.00031832,2]
[324929880,1714429844760,-207.203829,0.00031832,2]
[324929881,1714429844770,-207.203829,0.00031832,2]
[324929882,1714429844779,-207.203829,0.00031832,2]
[324929883,1714429844788,-207.203829,0.00031832,2]
[324929884,1714429844800,-151.0,0.00031832,2]
[324929885,1714429844809,-151.0,0.00031832,2]
[324929886,1714429844819,-151.0,0.00031832,2]
[324929887,1714429844828,-151.0,0.00031832,2]
[324929888,1714429844838,-151.0,0.00031832,2]
[324929889,1714429844847,-288.33413,0.00031832,2]
[324929890,1714429844858,-288.33413,0.00031832,2]
[324929891,1714429844868,-288.33413,0.00031832,2]
[324929892,1714429844878,-288.33413,0.00031832,2]
[324929893,1714429844887,-288.33413,0.00031832,2]
[324929894,1714429845048,-288.33413,0.00031832,2]
[324929895,1714429845061,-151.0,0.00031832,2]
[324929896,1714429845074,-151.0,0.00031832,2]
[324929897,1714429845084,-151.0,0.00031832,2]
[324929898,1714429845095,-151.0,0.00031832,2]
[324929899,1714429845106,-195.59457,0.00031832,2]
[324929900,1714429845115,-151.0,0.00031832,2]
[324929901,1714429845125,-151.0,0.00031832,2]
[324929902,1714429845134,-151.0,0.00031832,2]
[324929903,1714429845143,-151.0,0.00031832,2]
[324929904,1714429845153,-151.0,0.00031832,2]
[324929905,1714429845163,-151.0,0.00031832,2]
[324929906,1714429845173,-151.0,0.00031832,2]
[324929907,1714429845183,-151.0,0.00031832,2]
[324929908,1714429845192,-151.0,0.00031832,2]
[324929909,1714429845202,-151.0,0.00031832,2]
[324929910,1714429845211,-151.0,0.00031832,2]
[324929911,1714429845220,-151.0,0.00031832,2]
[324929912,1714429845230,-746.779422,0.00031832,2]
[324929913,1714429845239,-746.779422,0.00031832,2]
[324929914,1714429845249,-746.779422,0.00031832,2]
[324929915,1714429845258,-151.0,0.00031832,2]
[324929916,1714429845267,-746.779422,0.00031832,2]
[324929917,1714429845277,-238.246974,0.00031832,2]
[324929918,1714429845287,-746.779422,0.00031832,2]
[324929919,1714429845301,-746.779422,0.00031832,2]
[324929920,1714429845311,-746.779422,0.00031832,2]
[324929921,1714429845321,-746.779422,0.00031832,2]
[324929922,1714429845330,-151.0,0.00031832,2]
[324929923,1714429845338,-151.0,0.00031832,2]
[324929924,1714429845347,-151.0,0.00031832,2]
[324929925,1714429845356,-151.0,0.00031832,2]
[324929926,1714429845366,-262.278445,0.00031832,2]
[324929927,1714429845375,-262.278445,0.00031832,2]
[324929928,1714429845384,-262.278445,0.00031832,2]
[324929929,1714429845393,-262.278445,0.00031832,2]
[324929930,1714429845403,-262.278445,0.00031832,2]
[324929931,1714429845414,-262.278445,0.00031832,2]
[324929932,1714429845423,-262.278445,0.00031832,2]
[324929933,1714429845433,-262.278445,0.00031832,2]
[324929934,1714429845442,-499.226717,0.00031832,2]
[324929935,1714429845451,-499.226717,0.00031832,2]
[324929936,1714429845461,-499.226717,0.00031832,2]
[324929937,1714429845470,-499.226717,0.00031832,2]
[324929938,1714429845480,-499.226717,0.00031832,2]
[324929939,1714429845489,-499.226717,0.00031832,2]
[324929940,1714429845499,-499.226717,0.00031832,2]
[324929941,1714429845508,-499.226717,0.00031832,2]
[324929942,1714429845517,-193.571571,0.00031832,2]
[324929943,1714429845527,-151.0,0.00031832,2]
[324929944,1714429845537,-151.0,0.00031832,2]
[324929945,1714429845549,-151.0,0.00031832,2]
[324929946,1714429845558,-151.0,0.00031832,2]
[324929947,1714429845567,-151.0,0.00031832,2]
[324929948,1714429845576,-151.0,0.00031832,2]
[324929949,1714429845586,-224.76571,0.00031832,2]
[324929950,1714429845595,-151.0,0.00031832,2]
[324929951,1714429845609,-151.0,0.00031832,2]
[324929952,1714429845618,-345.4731,0.00031832,2]
[324929953,1714429845628,-345.4731,0.00031832,2]
[324929954,1714429845637,-345.4731,0.00031832,2]
[324929955,1714429845647,-345.4731,0.00031832,2]
[324929956,1714429845656,-345.4731,0.00031832,2]
[324929957,1714429845665,-345.4731,0.00031832,2]
[324929958,1714429845674,-345.4731,0.00031832,2]
[324929959,1714429845684,-345.4731,0.00031832,2]
[324929960,1714429845693,-151.0,0.00031832,2]
[324929961,1714429845702,-151.0,0.00031832,2]
[324929962,1714429845712,-151.0,0.00031832,2]
[324929963,1714429845722,-151.0,0.00031832,2]
[324929964,1714429845731,-176.413158,0.00031832,2]
[324929965,1714429845740,-151.0,0.00031832,2]
[324929966,1714429845752,-151.0,0.00031832,2]
[324929967,1714429845762,-151.0,0.00031832,2]
[324929968,1714429845771,-151.0,0.00031832,2]
[324929969,1714429845781,-151.0,0.00031832,2]
[324929970,1714429845792,-151.0,0.00031832,2]
[324929971,1714429845801,-151.0,0.00031832,2]
[324929972,1714429845810,-151.0,0.00031832,2]
[324929973,1714429845820,-151.0,0.00031832,2]
[324929974,1714429845829,-151.0,0.00031832,2]
[324929975,1714429845838,-151.0,0.00031832,2]
[324929976,1714429845852,-284.237347,0.00031832,2]
[324929977,1714429845861,-269.290335,0.00031832,2]
[324929978,1714429845871,-269.290335,0.00031832,2]
[324929979,1714429845880,-269.290335,0.00031832,2]
[324929980,1714429845890,-269.290335,0.00031832,2]
[324929981,1714429845899,-269.290335,0.00031832,2]
[324929982,1714429845908,-269.290335,0.00031832,2]
[324929983,1714429845918,-269.290335,0.00031832,2]
[324929984,1714429845927,-269.290335,0.00031832,2]
[324929985,1714429845936,-180.368819,0.00031832,2]
[324929986,1714429845946,-180.368819,0.00031832,2]
[324929987,1714429845955,-180.368819,0.00031832,2]
[324929988,1714429845964,-180.368819,0.00031832,2]
[324929989,1714429845973,-180.368819,0.00031832,2]
[324929990,1714429845982,-180.368819,0.00031832,2]
[324929991,1714429845991,-180.368819,0.00031832,2]
[324929992,1714429846000,-180.368819,0.00031832,2]
[324929993,1714429846009,-151.0,0.00031832,2]
[324929994,1714429846019,-826.351449,0.00031832,2]
[324929995,1714429846028,-826.351449,0.00031832,2]
[324929996,1714429846037,-826.351449,0.00031832,2]
[324929997,1714429846050,-826.351449,0.00031832,2]
[324929998,1714429846059,-826.351449,0.00031832,2]
[324929999,1714429846069,-826.351449,0.00031832,2]
[324930000,1714429846078,-826.351449,0.00031832,2]
[324930001,1714429846088,-826.351449,0.00031832,2]
[324930002,1714429846097,-151.0,0.00031832,2]
[324930003,1714429846106,-151.0,0.00031832,2]
[324930004,1714429846115,-199.785048,0.00031832,2]
[324930005,1714429846124,-2350.127199,0.00031832,2]
[324930006,1714429846133,-2350.127199,0.00031832,2]
[324930007,1714429846142,-2350.127199,0.00031832,2]
[324930008,1714429846151,-2350.127199,0.00031832,2]
[324930009,1714429846161,-2350.127199,0.00031832,2]
[324930010,1714429846171,-2350.127199,0.00031832,2]
[324930011,1714429846179,-2350.127199,0.00031832,2]
[324930012,1714429846188,-2350.127199,0.00031832,2]
[324930013,1714429846198,-207.20128,0.00031832,2]
[324930014,1714429846207,-245.971055,0.00031832,2]
[324930015,1714429846216,-245.971055,0.00031832,2]
[324930016,1714429846225,-245.971055,0.00031832,2]
[324930017,1714429846234,-245.971055,0.00031832,2]
[324930018,1714429846244,-245.971055,0.00031832,2]
[324930019,1714429846253,-245.971055,0.00031832,2]
[324930020,1714429846262,-253.00319451,0.00031832,10]
[324930021,1714429846271,-500.0,0.00031832,10]
[324930022,1714429846281,-29688.55303323,0.00031832,7]
[324930023,1714429846292,-2483.30132558,0.00031832,2]
[324930024,1714429846301,-44421.76678401,0.00031832,2]
[324930025,1714429846311,-2187.0381657,0.00031832,2]
[324930026,1714429846320,-300.0,0.00031832,2]
[324930027,1714429846329,-781.30639903,0.00031832,2]
[324930028,1714429846339,-1192.06603489,0.00031832,14]
[324930029,1714429846348,-224.62805428,0.00031832,10]
[324930030,1714429846357,-286.55434273,0.00031832,2]
[324930031,1714429846366,-5455.20390675,0.00031832,2]
[324930032,1714429846376,-4087.68306417,0.00031832,2]
[324930033,1714429846385,-315.48630084,0.00031832,2]
[324930034,1714429846395,-281.12466351,0.00031832,2]
[324930035,1714429846405,-4578.11340256,0.00031832,2]
[324930036,1714429846415,-1022.94863432,0.00031832,10]
[324930037,1714429846424,-19196.75151336,0.00031832,2]
[324930038,1714429846433,-6632.5736523,0.00031832,5]
[324930039,1714429846443,-469.05936293,0.00031832,2]
[324930040,1714429846452,-430.70263388,0.00031832,2]
[324930041,1714429846461,-3011.72564414,0.00031832,2]
[324930042,1714429846471,-2867.67739548,0.00031832,2]
[324930043,1714429846482,-1003.38381317,0.00031832,2]
[324930044,1714429846491,-977.55062889,0.00031832,2]
[324930045,1714429846501,-153.34957969,0.00031832,2]
[324930046,1714429846510,-153.34957969,0.00031832,2]
[324930047,1714429846519,-153.34957969,0.00031832,2]
[324930048,1714429846529,-153.34957969,0.00031832,2]
[324930049,1714429846538,-151.0,0.00031837,2]
[324930050,1714429846549,-151.0,0.00031837,2]
[324930051,1714429846558,-766.51798716,0.00032,4]
[324930052,1714429846567,-1210.30575349,0.00032,3]
[324930053,1714429846576,-162.5907344,0.00032166,7]
[324930054,1714429846585,-500.0,0.00032309,5]
[324930055,1714429846595,-500.0,0.00032876,14]
[324930056,1714429846604,-5000.0,0.00033,5]
[324930057,1714429846613,-179.0,0.00033,2]
[324930058,1714429846623,-179.0,0.00033,2]
[324930059,1714429846632,-245.971055,0.00033,2]
[324930060,1714429846641,-245.971055,0.00033,2]
[324930061,1714429846651,-501.86462815,0.000338,60]
[324930062,1714429846660,-968.24460279,0.0003392,3]
[324930063,1714429846670,-466.35092847,0.00034,4]
[324930064,1714429846680,-16228.24523147,0.00034,60]
[324930065,1714429846691,-151.0,0.00034,2]
[324930066,1714429846700,-207.203829,0.00034,2]
[324930067,1714429846709,-207.203829,0.00034,2]
[324930068,1714429846719,-151.0,0.00034,2]
[324930069,1714429846729,-288.33413,0.00034,2]
[324930070,1714429846738,-288.33413,0.00034,2]
[324930071,1714429846747,-151.0,0.00034,2]
[324930072,1714429846756,-151.0,0.00034,2]
[324930073,1714429846765,-163.150748,0.00034,2]
[324930074,1714429846775,-151.0,0.00034,2]
[324930075,1714429846783,-746.779422,0.00034,2]
[324930076,1714429846793,-746.779422,0.00034,2]
[324930077,1714429846803,-216.359147,0.00034,2]
[324930078,1714429846812,-262.278445,0.00034,2]
[324930079,1714429846821,-262.278445,0.00034,2]
[324930080,1714429846830,-499.226717,0.00034,2]
[324930081,1714429846839,-499.226717,0.00034,2]
[324930082,1714429846849,-151.0,0.00034,2]
[324930083,1714429846860,-345.4731,0.00034,2]
[324930084,1714429846869,-345.4731,0.00034,2]
[324930085,1714429846878,-151.0,0.00034,2]
[324930086,1714429846887,-151.0,0.00034,2]
[324930087,1714429846896,-151.0,0.00034,2]
[324930088,1714429846906,-269.290335,0.00034,2]
[324930089,1714429846915,-269.290335,0.00034,2]
[324930090,1714429846924,-180.368819,0.00034,2]
[324930091,1714429846935,-180.368819,0.00034,2]
[324930092,1714429846944,-826.351449,0.00034,2]
[324930093,1714429846953,-826.351449,0.00034,2]
[324930094,1714429846963,-2350.127199,0.00034,2]
[324930095,1714429846972,-2350.127199,0.00034,2]
[324930096,1714429846981,-500.0,0.00034009,5]
[324930097,1714429846990,-224.34545947,0.00034068,7]
[324930098,1714429846999,-565.05492021,0.00034246,14]
[324930099,1714429847008,-298.556806,0.00034521,2]
[324930100,1714429847018,-195.77112,0.00034521,2]
[324930101,1714429847028,-190.152352,0.00034521,2]
[324930102,1714429847037,-484.612701,0.00034521,2]
[324930103,1714429847047,-964.0261892,0.00034723,7]
[324930104,1714429847057,-1271.52239957,0.00034728,12]
[324930105,1714429847066,-26905.96443452,0.000349,2]
[324930106,1714429847076,-207.203829,0.000349,2]
[324930107,1714429847086,-207.203829,0.000349,2]
[324930108,1714429847095,-151.0,0.000349,2]
[324930109,1714429847106,-288.33413,0.000349,2]
[324930111,1714429847116,-288.33413,0.000349,2]
[324930112,1714429847127,-151.0,0.000349,2]
[324930113,1714429847135,-151.0,0.000349,2]
[324930114,1714429847145,-151.0,0.000349,2]
[324930115,1714429847154,-746.779422,0.000349,2]
[324930116,1714429847163,-746.779422,0.000349,2]
[324930117,1714429847173,-262.278445,0.000349,2]
[324930119,1714429847182,-262.278445,0.000349,2]
[324930121,1714429847192,-499.226717,0.000349,2]
[324930123,1714429847201,-499.226717,0.000349,2]
[324930125,1714429847210,-151.0,0.000349,2]
[324930127,1714429847220,-345.4731,0.000349,2]
[324930128,1714429847229,-345.4731,0.000349,2]
[324930130,1714429847239,-151.0,0.000349,2]
[324930132,1714429847248,-151.0,0.000349,2]
[324930134,1714429847257,-151.0,0.000349,2]
[324930136,1714429847267,-269.290335,0.000349,2]
[324930138,1714429847276,-269.290335,0.000349,2]
[324930140,1714429847285,-180.368819,0.000349,2]
[324930142,1714429847295,-180.368819,0.000349,2]
[324930144,1714429847304,-826.351449,0.000349,2]
[324930146,1714429847314,-826.351449,0.000349,2]
[324930148,1714429847323,-2350.127199,0.000349,2]
[324930149,1714429847332,-2350.127199,0.000349,2]
[324930150,1714429847341,-245.971055,0.000349,2]
[324930151,1714429847351,-245.971055,0.000349,2]
[324930153,1714429847360,-162.5907344,0.00034918,7]
[324930155,1714429847369,-1025.00357517,0.00035,2]
[324930157,1714429847379,-197.03294373,0.00035,4]
[324930163,1714429847554,-250.0,0.00035,4]
[324930182,1714430439169,335.0,0.00025,60]
[324930185,1714431024161,214.30521006,9.999e-05,2]
[324930186,1714431024197,306.14976613,9.999e-05,2]
[324930234,1714431032635,-939.34960788,0.00015,2]
[324930236,1714431032644,-300.0,0.00018954,2]
[324930237,1714431032653,-122.45780089,0.00018954,2]
[324930239,1714431032665,-177.54219911,0.00018954,2]
[324930241,1714431032674,-3271.19064688,0.00018955,2]
[324930243,1714431032691,-1513.78651647,0.00018955,2]
[324930245,1714431032702,-2016.47502924,0.00018955,2]
[324930469,1714431035150,283.80616892,9.999e-05,2]
[324930597,1714431039285,-1385.99645034,0.00018955,2]
[324930598,1714431039296,-16712.55135707,0.00018955,2]
[324930599,1714431039307,-160.12482,0.00019047,2]
[324930600,1714431039317,-160.44418,0.00019178,2]
[324930601,1714431039326,-200.0,0.0002,2]
[324930602,1714431039335,-420.0,0.0002066,2]
[324930603,1714431039344,-420.0,0.00020849,2]
[324930604,1714431039354,-253.773285,0.00022466,2]
[324930605,1714431039363,-202.649337,0.00022466,2]
[324930606,1714431039372,-161.629499,0.00022466,2]
[324930607,1714431039381,-587.0,0.00022521,2]
[324930608,1714431039391,-1303.40357935,0.000229,2]
[324930609,1714431039400,-587.0,0.00022934,2]
[324930610,1714431039409,-693.32219262,0.00024,2]
[324930611,1714431039419,-325.0,0.00024549,2]
[324930612,1714431039428,-154.78330338,0.0002475,2]
[324930613,1714431039438,-2000.0,0.00025,2]
[324930614,1714431039447,-154.78330338,0.00025,2]
[324930615,1714431039456,-1564.03593502,0.00025,2]
[324930616,1714431039465,-213.66587341,0.00025,2]
[324930617,1714431039479,-750.17356609,0.00025,2]
[324930618,1714431039488,-363.86320338,0.00025,2]
[324930619,1714431039496,-621.42995866,0.00025211,2]
[324930620,1714431039506,-823.0,0.00025227,2]
[324930621,1714431039661,-153.93095889,0.0002545,2]
[324930622,1714431039670,-740.60043174,0.00025716,2]
[324930623,1714431039680,-6546.31751128,0.00025999,2]
[324930624,1714431039689,-156.74703154,0.00026,2]
[324930625,1714431039698,-154.81422293,0.00026,2]
[324930626,1714431039707,-1620.83376637,0.00026,10]
[324930627,1714431039717,-5000.0,0.00026,2]
[324930628,1714431039731,-155.11008545,0.0002636,2]
[324930629,1714431039740,-620.07149793,0.00026472,2]
[324930630,1714431039749,-155.11008545,0.00026962,2]
[324930631,1714431039758,-166.666666,0.00027397,2]
[324930632,1714431039767,-153.50538082,0.00027484,2]
[324930633,1714431039776,-270.0,0.0002775,2]
[324930634,1714431039785,-620.0035749,0.00027795,2]
[324930635,1714431039794,-1303.40357935,0.000279,2]
[324930636,1714431039803,-424.03324128,0.00028023,2]
[324930637,1714431039812,-154.84831847,0.00028024,2]
[324930638,1714431039821,-166.666666,0.00028038,2]
[324930639,1714431039831,-153.50538082,0.00028045,2]
[324930640,1714431039840,-928.56039633,0.00028298,2]
[324930641,1714431039850,-1969.1650211,0.00028393,2]
[324930642,1714431039859,-253.773285,0.00028493,2]
[324930643,1714431039869,-202.649337,0.00028493,2]
[324930644,1714431039878,-161.629499,0.00028493,2]
[324930645,1714431039888,-153.50538082,0.00028523,2]
[324930646,1714431039897,-166.666666,0.00028679,2]
[324930647,1714431039907,-500.0,0.00028749,2]
[324930648,1714431039916,-154.84831847,0.00029062,2]
[324930649,1714431039925,-154.84831847,0.00029085,2]
[324930650,1714431039935,-740.60043174,0.00029101,4]
[324930651,1714431039944,-620.00017874,0.00029185,2]
[324930652,1714431039954,-166.666666,0.00029321,2]
[324930653,1714431039963,-153.93095889,0.00029612,2]
[324930654,1714431039974,-662.56100288,0.00029699,2]
[324930655,1714431039983,-272.67733248,0.00029777,2]
[324930656,1714431039993,-212.18025179,0.00029786,2]
[324930657,1714431040002,-154.78330338,0.00029786,2]
[324930658,1714431040011,-155.80789349,0.00029787,2]
[324930659,1714431040021,-203.18357003,0.00029787,2]
[324930660,1714431040030,-525.94055151,0.00029787,2]
[324930661,1714431040040,-514.23297925,0.00029787,2]
[324930662,1714431040053,-468.70122511,0.00029787,2]
[324930663,1714431040062,-154.93793206,0.00029787,2]
[324930664,1714431040071,-1575.24563677,0.00029787,2]
[324930665,1714431040080,-513.47404116,0.00029787,2]
[324930666,1714431040090,-702.32396249,0.00029787,2]
[324930667,1714431040099,-980.82202636,0.00029787,2]
[324930668,1714431040108,-311.51358233,0.00029787,2]
[324930669,1714431040118,-3134.48557274,0.00029787,7]
[324930670,1714431040127,-271.95968087,0.00029788,2]
[324930672,1714431040137,-2128.61400184,0.00029788,2]
[324930673,1714431040146,-1676.92552467,0.00029797,2]
[324930674,1714431040155,-845.11018484,0.00029797,2]
[324930675,1714431040165,-730.61014924,0.00029797,2]
[324930676,1714431040175,-462.92607961,0.00029797,2]
[324930677,1714431040185,-155.20007848,0.00029797,2]
[324930678,1714431040195,-2136.0411417,0.00029797,2]
[324930679,1714431040206,-263.41029085,0.00029797,2]
[324930680,1714431040219,-682.90391434,0.00029797,2]
[324930681,1714431040230,-171.44423598,0.00029797,2]
[324930682,1714431040239,-154.79876161,0.00029797,2]
[324930683,1714431040248,-522.04127739,0.00029797,2]
[324930684,1714431040258,-1202.42195094,0.00029797,2]
[324930685,1714431040267,-155.02956039,0.00029797,2]
[324930686,1714431040276,-206.23930448,0.00029797,2]
[324930687,1714431040285,-183.80738667,0.00029797,2]
[324930688,1714431040298,-154.84515485,0.00029797,2]
[324930689,1714431040309,-155.01275043,0.00029798,2]
[324930690,1714431040319,-154.93793206,0.00029798,2]
[324930691,1714431040328,-154.84515485,0.00029798,2]
[324930692,1714431040338,-1575.6250749,0.00029798,2]
[324930693,1714431040347,-2827.2918678,0.00029798,2]
[324930695,1714431040357,-155.05459913,0.00029798,2]
[324930696,1714431040367,-155.22572216,0.00029798,2]
[324930697,1714431040378,-6605.14474579,0.00029799,2]
[324930717,1714431041939,-112002.43096195,0.00029799,2]
[324930718,1714431041952,-45881.72462825,0.00029799,2]
[324930719,1714431041961,-166.666666,0.00029962,2]
[324930720,1714431041970,-154.78330338,0.0003,4]
[324930721,1714431041983,-154.78330338,0.0003,4]
[324930722,1714431041991,-154.78330338,0.0003,4]
[324930723,1714431042000,-222.0,0.0003,2]
[324930724,1714431042010,-166.666666,0.00030603,2]
[324930725,1714431042019,-154.84831847,0.00030789,7]
[324930726,1714431042028,-151.85894862,0.00031,120]
[324930727,1714431042037,-5000.0,0.00031,2]
[324930728,1714431042046,-153.50538082,0.00031143,7]
[324930729,1714431042056,-200.0,0.00031459,120]
[324930730,1714431042065,-768.26768042,0.00031489,30]
[324930731,1714431042074,-662.56100288,0.00031499,2]
[324930732,1714431042083,-3246.01743364,0.00031823,120]
[324930733,1714431042093,-153.34957969,0.00031823,2]
[324930734,1714431042102,-153.34957969,0.00031823,2]
[324930735,1714431042111,-323.8881219,0.00031829,4]
[324930736,1714431042120,-187.99466685,0.00031829,4]
[324930737,1714431042130,-184.04431654,0.0003183,4]
[324930738,1714431042139,-735.71749364,0.0003183,4]
[324930739,1714431042149,-290.28935706,0.0003183,4]
[324930740,1714431042158,-766.51798716,0.00032,4]
[324930741,1714431042167,-155.11008545,0.0003229,7]
[324930742,1714431042176,-740.60043174,0.00032485,6]
[324930743,1714431042185,-154.84831847,0.00032502,7]
[324930744,1714431042194,-153.50538082,0.00032619,7]
[324930745,1714431042205,-154.84831847,0.00032719,7]
[324930746,1714431042218,-666.0,0.00032876,120]
[324930747,1714431042232,-666.0,0.00032876,120]
[324930748,1714431042241,-666.0,0.00032876,120]
[324930749,1714431042251,-666.0,0.00032876,120]
[324930750,1714431042262,-666.0,0.00032876,120]
[324930751,1714431042272,-666.0,0.00032876,120]
[324930752,1714431042281,-666.0,0.00032876,120]
[324930753,1714431042291,-220.87568685,0.00032876,120]
[324930754,1714431042300,-500.0,0.00032876,14]
[324930755,1714431042310,-5000.0,0.00033,5]
[324930756,1714431042319,-222.0,0.00033,2]
[324930757,1714431042328,-222.0,0.00033,2]
[324930758,1714431042337,-153.50538082,0.00033154,7]
[324930759,1714431042346,-662.56100288,0.000333,2]
[324930760,1714431042355,-154.84831847,0.000334,7]
[324930761,1714431042364,-154.84831847,0.0003352,7]
[324930762,1714431042373,-466.35092847,0.00034,4]
[324930763,1714431042383,-500.0,0.00034246,14]
[324930764,1714431042392,-154.84831847,0.00034297,7]
[324930765,1714431042401,-253.773285,0.00034521,2]
[324930766,1714431042410,-202.649337,0.00034521,2]
[324930767,1714431042420,-161.629499,0.00034521,2]
[324930768,1714431042429,-157.53850697,0.00034649,3]
[324930769,1714431042437,-18937.12234291,0.00034898,3]
[324930770,1714431042449,-434.1116,0.00034898,3]
[324930822,1714431046539,-2000.0,0.00029699,2]
[324930823,1714431046549,-519.65062527,0.00029787,2]
[324930824,1714431046558,-39896.34,0.00029789,3]
[324930825,1714431046567,-939.04672329,0.00031251,4]
[324930826,1714431046577,-25072.76605709,0.00034898,3]
[324930827,1714431046586,-65748.2578039,0.000349,7]
[324930828,1714431046595,-151.0,0.000349,2]
[324930829,1714431046604,-151.0,0.000349,2]
[324930830,1714431046615,-151.0,0.000349,2]
[324930831,1714431046625,-151.212021,0.000349,2]
[324930832,1714431046634,-151.0,0.000349,2]
[324930833,1714431046643,-151.0,0.000349,2]
[324930834,1714431046653,-232.579818,0.000349,2]
[324930835,1714431046662,-182.553311,0.000349,2]
[324930836,1714431046671,-151.0,0.000349,2]
[324930837,1714431046681,-151.0,0.000349,2]
[324930838,1714431046690,-151.0,0.000349,2]
[324930839,1714431046699,-211.103015,0.000349,2]
[324930840,1714431046708,-269.755913,0.000349,2]
[324930841,1714431046718,-269.755913,0.000349,2]
[324930842,1714431046730,-202.34444493,0.0003493,2]
[324930843,1714431046739,-713.83575721,0.00034988,2]
[324930844,1714431046748,-164.04462217,0.00034988,4]
[324930845,1714431046757,-1312.48943229,0.00034988,4]
[324930846,1714431046766,-2390.94761093,0.00034988,4]
[324930847,1714431046776,-2778.37153564,0.00034988,120]
[324930848,1714431046785,-186.21643528,0.00034988,4]
[324930849,1714431046794,-2462.5477554,0.00034988,4]
[324930850,1714431046803,-154.81422293,0.00034988,4]
[324930851,1714431046813,-159.13598878,0.00034989,4]
[324930852,1714431046822,-10513.76588134,0.00034989,4]
[324930853,1714431046832,-603.57234398,0.00034998,4]
[324930854,1714431046841,-241.61171692,0.00034998,4]
[324930855,1714431046850,-2588.41116025,0.00034998,4]
[324930856,1714431046859,-472.12357594,0.00034998,4]
[324930857,1714431046868,-225.58732305,0.00034998,2]
[324930858,1714431046877,-278.1654711,0.00034998,4]
[324930859,1714431046887,-400.0,0.00034998,2]
[324930860,1714431046896,-1038.32896601,0.00034998,4]
[324930861,1714431046906,-329.804469,0.00034998,4]
[324930862,1714431046917,-242.78860119,0.00034998,4]
[324930863,1714431046927,-8533.79303023,0.00034998,4]
[324930864,1714431046936,-154.81422293,0.00034998,7]
[324930865,1714431046946,-1228.81174546,0.00034998,4]
[324930866,1714431046956,-1626.53,0.00034999,2]
[324930867,1714431046966,-1626.53,0.00034999,2]
[324930868,1714431046978,-1626.53,0.00034999,2]